fUST/lending_fUST_20240826
["ID","MTS","AMOUNT","RATE_DAILY","PERIOD"]
[335942141,1724634641096,-500.0,0.00013055,2]
[335942142,1724634641106,-549.65689751,0.00013055,2]
[335942143,1724634641115,-1770.84,0.00013055,2]
[335942144,1724634641124,-682.21,0.00013055,2]
[335942145,1724634641133,-799.13,0.00013055,2]
[335942146,1724634641143,-591.85564208,0.00013099,2]
[335942147,1724634641152,-500.0,0.00013099,2]
[335942148,1724634641162,-1088.64,0.00013099,2]
[335942149,1724634641171,-500.0,0.00013099,2]
[335942150,1724634641181,-709.24,0.00013099,2]
[335942151,1724634641190,-1175.86,0.00013099,2]
[335942152,1724634641200,-936.55,0.00013099,2]
[335942153,1724634641209,-500.0,0.00013099,2]
[335942154,1724634641218,-500.0,0.00013099,2]
[335942155,1724634641227,-500.0,0.00013099,2]
[335942156,1724634641237,-500.0,0.00013099,2]
[335942157,1724634641246,-500.0,0.00013099,2]
[335942158,1724634641255,-500.0,0.00013099,2]
[335942159,1724634641265,-500.0,0.00013099,2]
[335942160,1724634641274,-602.83,0.00013099,2]
[335942161,1724634641284,-920.72,0.00013099,2]
[335942162,1724634641294,-797.43,0.00013099,2]
[335942163,1724634641303,-500.0,0.00013099,2]
[335942164,1724634641312,-591.82,0.00013099,2]
[335942165,1724634641322,-865.71,0.00013099,2]
[335942166,1724634641331,-1308.21,0.00013099,2]
[335942167,1724634641341,-701.05,0.00013099,2]
[335942168,1724634641351,-1192.97,0.00013099,2]
[335942169,1724634641360,-848.04,0.00013099,2]
[335942170,1724634641370,-929.63,0.00013099,2]
[335942171,1724634641379,-982.827732,0.00013099,2]
[335942172,1724634641389,-982.827732,0.00013099,2]
[335942173,1724634641398,-510.24,0.00013099,2]
[335942174,1724634641408,-761.23,0.00013099,2]
[335942175,1724634641417,-585.25,0.00013099,2]
[335942176,1724634641427,-595.83,0.00013099,2]
[335942177,1724634641436,-743.7,0.00013099,2]
[335942178,1724634641446,-500.0,0.00013099,2]
[335942179,1724634641455,-1180.06,0.00013099,2]
[335942180,1724634641466,-150.112233,0.000131,2]
[335942181,1724634641475,-150.112233,0.000131,2]
[335942182,1724634641485,-600.0,0.0001315,2]
[335942183,1724634641494,-684.99,0.00013176,2]
[335942184,1724634641504,-500.0,0.00013176,2]
[335942185,1724634641513,-500.0,0.00013176,2]
[335942186,1724634641522,-500.0,0.00013176,2]
[335942187,1724634641533,-281.87390084,0.00013176,2]
[335942188,1724634641543,-520.48,0.00013176,2]
[335942189,1724634641551,-500.0,0.00013176,2]
[335942190,1724634641560,-500.0,0.00013176,2]
[335942191,1724634641570,-500.0,0.00013176,2]
[335942192,1724634641580,-500.0,0.00013176,2]
[335942193,1724634641589,-500.0,0.00013176,2]
[335942194,1724634641599,-276.94949455,0.00013176,2]
[335942195,1724634641609,-500.0,0.00013176,2]
[335942196,1724634641618,-500.0,0.00013176,2]
[335942197,1724634641627,-500.0,0.00013176,2]
[335942198,1724634641637,-500.0,0.00013176,2]
[335942199,1724634641647,-500.0,0.00013176,2]
[335942200,1724634641656,-500.0,0.00013176,2]
[335942201,1724634641666,-500.0,0.00013176,2]
[335942202,1724634641676,-500.0,0.00013176,2]
[335942203,1724634641685,-500.0,0.00013176,2]
[335942204,1724634641695,-1272.87,0.00013176,2]
[335942205,1724634641704,-500.0,0.00013176,2]
[335942206,1724634641713,-500.0,0.00013176,2]
[335942207,1724634641723,-723.98,0.00013177,2]
[335942208,1724634641733,-758.65,0.00013177,2]
[335942209,1724634641742,-16042.81,0.00013177,2]
[335942210,1724634641752,-4253.56,0.00013177,2]
[335942211,1724634641762,-150.112233,0.000132,2]
[335942212,1724634642040,-728.44,0.00013262,2]
[335942213,1724634642051,-500.0,0.00013262,2]
[335942214,1724634642061,-747.02,0.00013262,2]
[335942215,1724634642070,-820.51,0.00013262,2]
[335942216,1724634642080,-645.61,0.00013262,2]
[335942217,1724634642090,-876.77,0.00013262,2]
[335942218,1724634642099,-500.0,0.00013262,2]
[335942219,1724634642109,-781.88,0.00013262,2]
[335942220,1724634642118,-500.0,0.00013262,2]
[335942221,1724634642128,-500.0,0.00013262,2]
[335942222,1724634642138,-500.0,0.00013262,2]
[335942223,1724634642148,-702.57,0.00013262,2]
[335942224,1724634642158,-744.24,0.00013262,2]
[335942225,1724634642168,-500.0,0.00013262,2]
[335942226,1724634642178,-500.0,0.00013262,2]
[335942227,1724634642188,-500.0,0.00013262,2]
[335942228,1724634642198,-500.0,0.00013262,2]
[335942229,1724634642208,-500.0,0.00013262,2]
[335942230,1724634642218,-982.827732,0.00013262,2]
[335942231,1724634642228,-982.827732,0.00013262,2]
[335942232,1724634642238,-1268.44,0.00013263,2]
[335942233,1724634642247,-14294.5,0.00013263,2]
[335942234,1724634642257,-777.27,0.00013263,2]
[335942235,1724634642266,-792.95,0.00013263,2]
[335942236,1724634642276,-150.112233,0.000133,2]
[335942237,1724634642287,-150.112233,0.000133,2]
[335942238,1724634642297,-1000.0,0.00013321,2]
[335942239,1724634642307,-441.0,0.00013321,2]
[335942240,1724634642317,-1132.78,0.00013328,2]
[335942241,1724634642327,-27689.80996679,0.00013329,5]
[335942242,1724634642337,-500.0,0.00013329,2]
[335942243,1724634642347,-915.01,0.00013329,2]
[335942244,1724634642357,-589.57,0.00013329,2]
[335942245,1724634642367,-356.67794726,0.00013329,2]
[335942246,1724634642378,-768.03,0.00013329,2]
[335942247,1724634642388,-995.93,0.00013329,2]
[335942248,1724634642398,-1064.98,0.00013329,2]
[335942249,1724634642408,-1137.24,0.00013329,2]
[335942250,1724634642418,-500.0,0.00013329,2]
[335942251,1724634642428,-502.23,0.00013329,2]
[335942252,1724634642439,-500.0,0.00013329,2]
[335942254,1724634642448,-446.57381431,0.00013329,2]
[335942256,1724634642458,-500.0,0.00013329,2]
[335942258,1724634642473,-500.0,0.00013329,2]
[335942260,1724634642482,-500.0,0.00013329,2]
[335942262,1724634642493,-1399.87,0.00013329,2]
[335942264,1724634642505,-500.0,0.00013329,2]
[335942265,1724634642516,-500.0,0.00013329,2]
[335942266,1724634642527,-588.18,0.00013329,2]
[335942267,1724634642540,-766.21,0.00013329,2]
[335942268,1724634642550,-500.0,0.00013329,2]
[335942269,1724634642562,-500.0,0.00013329,2]
[335942270,1724634642572,-500.0,0.00013329,2]
[335942271,1724634642582,-1249.14,0.00013329,2]
[335942272,1724634642592,-836.68,0.00013329,2]
[335942274,1724634642603,-500.0,0.00013329,2]
[335942275,1724634642613,-500.0,0.00013329,2]
[335942276,1724634642624,-500.0,0.00013329,2]
[335942277,1724634642635,-457.61769196,0.00013329,2]
[335942279,1724634642646,-500.0,0.00013329,2]
[335942280,1724634642656,-598.31,0.00013329,2]
[335942281,1724634642666,-1029.66,0.00013329,2]
[335942282,1724634642677,-500.0,0.00013329,2]
[335942283,1724634642687,-682.82,0.00013329,2]
[335942284,1724634642698,-793.84,0.00013329,2]
[335942285,1724634642708,-516.67,0.00013329,2]
[335942286,1724634642718,-575.93,0.00013329,2]
[335942287,1724634642728,-509.25,0.00013329,2]
[335942289,1724634642738,-500.0,0.00013329,2]
[335942290,1724634642749,-624.43,0.00013329,2]
[335942291,1724634642758,-1178.17,0.00013329,2]
[335942292,1724634642769,-1231.14,0.00013329,2]
[335942293,1724634642779,-5963.29,0.00013329,2]
[335942294,1724634642794,-40548.41,0.00013329,2]
[335942295,1724634642804,-500.0,0.00013329,2]
[335942296,1724634642814,-982.827732,0.00013329,2]
[335942297,1724634642824,-577.81,0.00013329,2]
[335942298,1724634642835,-513.9664952,0.00013329,2]
[335942299,1724634642844,-982.827742,0.00013329,2]
[335942300,1724634642855,-731.56,0.00013329,2]
[335942301,1724634642866,-500.0,0.00013329,2]
[335942302,1724634642878,-981.21,0.00013329,2]
[335942303,1724634642890,-991.38,0.00013329,2]
[335942304,1724634642899,-802.93,0.00013329,2]
[335942306,1724634642910,-500.0,0.00013329,2]
[335942308,1724634642920,-500.0,0.00013329,2]
[335942309,1724634642930,-500.0,0.00013329,2]
[335942310,1724634642941,-2195.87,0.00013329,2]
[335942311,1724634642951,-860.31,0.00013329,2]
[335942312,1724634642961,-614.5,0.00013329,2]
[335942313,1724634642972,-689.42,0.00013329,2]
[335942314,1724634642982,-500.0,0.00013329,2]
[335942315,1724634642992,-500.9925602,0.00013329,2]
[335942316,1724634643002,-968.75,0.00013329,2]
[335942317,1724634643012,-1422.28,0.00013329,2]
[335942318,1724634643022,-979.23,0.00013329,2]
[335942319,1724634643032,-1550.85,0.00013329,2]
[335942320,1724634643051,-636.56,0.00013329,2]
[335942321,1724634643061,-500.0,0.00013329,2]
[335942322,1724634643071,-500.36,0.00013329,2]
[335942323,1724634643080,-500.0,0.00013329,2]
[335942324,1724634643095,-823.89,0.00013329,2]
[335942325,1724634643106,-638.04,0.00013329,2]
[335942326,1724634643116,-977.66,0.00013329,2]
[335942327,1724634643127,-762.54,0.00013329,2]
[335942328,1724634643139,-500.0,0.00013329,2]
[335942329,1724634643149,-1770.84,0.00013329,2]
[335942330,1724634643159,-682.21,0.00013329,2]
[335942331,1724634643170,-799.13,0.00013329,2]
[335942332,1724634643180,-500.0,0.00013373,2]
[335942333,1724634643191,-1088.64,0.00013373,2]
[335942334,1724634643201,-500.0,0.00013373,2]
[335942335,1724634643211,-709.24,0.00013373,2]
[335942336,1724634643222,-1175.86,0.00013373,2]
[335942337,1724634643232,-936.55,0.00013373,2]
[335942338,1724634643244,-500.0,0.00013373,2]
[335942339,1724634643255,-500.0,0.00013373,2]
[335942340,1724634643266,-500.0,0.00013373,2]
[335942341,1724634643276,-500.0,0.00013373,2]
[335942342,1724634643286,-500.0,0.00013373,2]
[335942343,1724634643296,-500.0,0.00013373,2]
[335942344,1724634643307,-500.0,0.00013373,2]
[335942345,1724634643318,-602.83,0.00013373,2]
[335942346,1724634643329,-920.72,0.00013373,2]
[335942347,1724634643340,-797.43,0.00013373,2]
[335942348,1724634643351,-500.0,0.00013373,2]
[335942349,1724634643361,-591.82,0.00013373,2]
[335942350,1724634643371,-865.71,0.00013373,2]
[335942351,1724634643381,-1308.21,0.00013373,2]
[335942352,1724634643391,-701.05,0.00013373,2]
[335942353,1724634643401,-1192.97,0.00013373,2]
[335942354,1724634643411,-848.04,0.00013373,2]
[335942355,1724634643421,-929.63,0.00013373,2]
[335942356,1724634643431,-510.24,0.00013373,2]
[335942357,1724634643442,-761.23,0.00013373,2]
[335942358,1724634643452,-585.25,0.00013373,2]
[335942359,1724634643462,-595.83,0.00013373,2]
[335942360,1724634643472,-743.7,0.00013373,2]
[335942361,1724634643483,-500.0,0.00013373,2]
[335942362,1724634643493,-1180.06,0.00013373,2]
[335942363,1724634643503,-1416.0,0.00013381,2]
[335942364,1724634643513,-420.0,0.00013383,2]
[335942365,1724634643523,-150.112233,0.000134,2]
[335942366,1724634643534,-684.99,0.0001345,2]
[335942367,1724634643544,-500.0,0.0001345,2]
[335942368,1724634643554,-500.0,0.0001345,2]
[335942369,1724634643564,-500.0,0.0001345,2]
[335942370,1724634643575,-520.48,0.0001345,2]
[335942371,1724634643584,-500.0,0.0001345,2]
[335942372,1724634643594,-500.0,0.0001345,2]
[335942373,1724634643604,-500.0,0.0001345,2]
[335942374,1724634643614,-500.0,0.0001345,2]
[335942375,1724634643624,-500.0,0.0001345,2]
[335942376,1724634643634,-500.0,0.0001345,2]
[335942377,1724634643647,-500.0,0.0001345,2]
[335942378,1724634643657,-225.60028777,0.0001345,2]
[335942379,1724634643668,-604.84439831,0.0001345,2]
[335942380,1724634643678,-500.0,0.0001345,2]
[335942381,1724634643688,-500.0,0.0001345,2]
[335942382,1724634643698,-500.0,0.0001345,2]
[335942383,1724634643707,-500.0,0.0001345,2]
[335942384,1724634643717,-500.0,0.0001345,2]
[335942385,1724634643726,-1272.87,0.0001345,2]
[335942386,1724634643735,-500.0,0.0001345,2]
[335942387,1724634643745,-500.0,0.0001345,2]
[335942388,1724634643755,-723.98,0.00013451,2]
[335942389,1724634643765,-758.65,0.00013451,2]
[335942390,1724634643775,-16042.81,0.00013451,2]
[335942391,1724634643787,-4253.56,0.00013451,2]
[335942392,1724634643800,-221.214556,0.00013473,2]
[335942393,1724634643812,-168.644325,0.00013473,2]
[335942394,1724634643823,-182.812538,0.00013473,2]
[335942395,1724634643834,-221.214555,0.00013473,2]
[335942396,1724634643845,-158.510397,0.00013473,2]
[335942397,1724634643858,-172.875451,0.00013473,2]
[335942398,1724634643868,-184.345463,0.00013473,2]
[335942399,1724634643878,-191.187051,0.00013473,2]
[335942400,1724634643889,-182.24195,0.00013473,2]
[335942401,1724634643898,-232.380145,0.00013473,2]
[335942402,1724634643908,-284.539085,0.00013473,2]
[335942403,1724634643918,-1816.87451471,0.00013477,2]
[335942404,1724634643928,-150.112233,0.000135,2]
[335942405,1724634643937,-153.0,0.00013536,2]
[335942406,1724634643948,-153.0,0.00013536,2]
[335942407,1724634643958,-153.0,0.00013536,2]
[335942408,1724634643968,-153.0,0.00013536,2]
[335942409,1724634643978,-153.0,0.00013536,2]
[335942410,1724634643987,-153.0,0.00013536,2]
[335942411,1724634643998,-153.0,0.00013536,2]
[335942412,1724634644008,-153.0,0.00013536,2]
[335942413,1724634644018,-153.0,0.00013536,2]
[335942414,1724634644027,-153.0,0.00013536,2]
[335942415,1724634644037,-153.0,0.00013536,2]
[335942416,1724634644047,-153.0,0.00013536,2]
[335942417,1724634644057,-728.44,0.00013536,2]
[335942418,1724634644067,-484.68048284,0.00013536,2]
[335942419,1724634644077,-747.02,0.00013536,2]
[335942420,1724634644087,-820.51,0.00013536,2]
[335942421,1724634644097,-645.61,0.00013536,2]
[335942422,1724634644106,-876.77,0.00013536,2]
[335942423,1724634644116,-500.0,0.00013536,2]
[335942424,1724634644127,-781.88,0.00013536,2]
[335942425,1724634644137,-500.0,0.00013536,2]
[335942426,1724634644147,-500.0,0.00013536,2]
[335942427,1724634644157,-500.0,0.00013536,2]
[335942428,1724634644166,-702.57,0.00013536,2]
[335942429,1724634644176,-744.24,0.00013536,2]
[335942430,1724634644186,-500.0,0.00013536,2]
[335942431,1724634644195,-500.0,0.00013536,2]
[335942432,1724634644205,-500.0,0.00013536,2]
[335942433,1724634644215,-500.0,0.00013536,2]
[335942434,1724634644224,-500.0,0.00013536,2]
[335942435,1724634644235,-1268.44,0.00013537,2]
[335942436,1724634644244,-14294.5,0.00013537,2]
[335942437,1724634644253,-777.27,0.00013537,2]
[335942438,1724634644263,-792.95,0.00013537,2]
[335942439,1724634644273,-153.0,0.00013543,2]
[335942440,1724634644284,-153.0,0.00013543,2]
[335942441,1724634644293,-153.0,0.00013543,2]
[335942442,1724634644303,-153.0,0.00013543,2]
[335942443,1724634644313,-153.0,0.00013543,2]
[335942444,1724634644322,-153.0,0.00013543,2]
[335942445,1724634644332,-153.0,0.00013543,2]
[335942446,1724634644342,-153.0,0.00013543,2]
[335942447,1724634644352,-153.0,0.00013544,2]
[335942448,1724634644361,-153.0,0.00013544,2]
[335942449,1724634644371,-153.0,0.00013544,2]
[335942450,1724634644381,-153.0,0.00013544,2]
[335942451,1724634644391,-153.0,0.00013544,2]
[335942452,1724634644400,-153.0,0.00013544,2]
[335942453,1724634644410,-153.0,0.00013544,2]
[335942454,1724634644420,-153.0,0.00013544,2]
[335942455,1724634644429,-153.0,0.00013544,2]
[335942456,1724634644439,-153.0,0.00013544,2]
[335942457,1724634644449,-153.0,0.00013544,2]
[335942458,1724634644459,-153.0,0.00013544,2]
[335942459,1724634644469,-153.0,0.00013544,2]
[335942460,1724634644479,-153.0,0.00013544,2]
[335942461,1724634644489,-153.0,0.00013544,2]
[335942462,1724634644499,-153.0,0.00013544,2]
[335942463,1724634644509,-153.0,0.00013544,2]
[335942464,1724634644598,-153.0,0.00013544,2]
[335942465,1724634644608,-153.0,0.00013544,2]
[335942466,1724634644618,-153.0,0.00013544,2]
[335942467,1724634644627,-153.0,0.00013544,2]
[335942468,1724634644636,-153.0,0.00013544,2]
[335942469,1724634644646,-153.0,0.00013544,2]
[335942470,1724634644655,-153.0,0.00013544,2]
[335942471,1724634644664,-153.0,0.00013544,2]
[335942472,1724634644673,-153.0,0.00013544,2]
[335942473,1724634644682,-153.0,0.00013544,2]
[335942474,1724634644691,-153.0,0.00013544,2]
[335942475,1724634644700,-153.0,0.00013544,2]
[335942476,1724634644710,-153.0,0.00013544,2]
[335942477,1724634644719,-153.0,0.00013544,2]
[335942478,1724634644728,-153.0,0.00013544,2]
[335942479,1724634644737,-153.0,0.00013544,2]
[335942480,1724634644746,-153.0,0.00013544,2]
[335942481,1724634644755,-153.0,0.00013544,2]
[335942482,1724634644764,-153.0,0.00013544,2]
[335942483,1724634644773,-153.0,0.00013544,2]
[335942484,1724634644785,-153.0,0.00013544,2]
[335942485,1724634644797,-153.0,0.00013544,2]
[335942486,1724634644806,-153.0,0.00013544,2]
[335942487,1724634644816,-153.0,0.00013544,2]
[335942488,1724634644824,-153.0,0.00013544,2]
[335942489,1724634644834,-153.0,0.00013544,2]
[335942490,1724634644843,-153.0,0.00013544,2]
[335942491,1724634644854,-153.0,0.00013544,2]
[335942492,1724634644863,-153.0,0.00013544,2]
[335942493,1724634644873,-153.0,0.00013544,2]
[335942494,1724634644883,-153.0,0.00013544,2]
[335942495,1724634644893,-153.0,0.00013544,2]
[335942496,1724634644902,-153.0,0.00013544,2]
[335942497,1724634644911,-153.0,0.00013544,2]
[335942498,1724634644920,-153.0,0.00013544,2]
[335942499,1724634644929,-153.0,0.00013544,2]
[335942500,1724634644938,-153.0,0.00013544,2]
[335942501,1724634644947,-153.0,0.00013544,2]
[335942502,1724634644957,-153.0,0.00013544,2]
[335942503,1724634644966,-153.0,0.00013544,2]
[335942504,1724634644976,-153.0,0.00013544,2]
[335942505,1724634644985,-162.0,0.00013544,2]
[335942506,1724634644994,-162.0,0.00013544,2]
[335942507,1724634645004,-162.0,0.00013544,2]
[335942508,1724634645013,-162.0,0.00013544,2]
[335942509,1724634645022,-162.0,0.00013544,2]
[335942510,1724634645032,-162.0,0.00013544,2]
[335942511,1724634645041,-162.0,0.00013544,2]
[335942512,1724634645051,-162.0,0.00013544,2]
[335942513,1724634645060,-162.0,0.00013544,2]
[335942514,1724634645069,-162.0,0.00013544,2]
[335942515,1724634645078,-162.0,0.00013544,2]
[335942516,1724634645087,-162.0,0.00013544,2]
[335942517,1724634645096,-162.0,0.00013544,2]
[335942518,1724634645105,-162.0,0.00013544,2]
[335942519,1724634645115,-162.0,0.00013544,2]
[335942520,1724634645124,-162.0,0.00013544,2]
[335942521,1724634645133,-162.0,0.00013544,2]
[335942522,1724634645142,-162.0,0.00013544,2]
[335942523,1724634645152,-162.0,0.00013544,2]
[335942525,1724634645161,-162.0,0.00013544,2]
[335942527,1724634645170,-162.0,0.00013544,2]
[335942528,1724634645179,-162.0,0.00013544,2]
[335942529,1724634645188,-162.0,0.00013544,2]
[335942530,1724634645197,-162.0,0.00013544,2]
[335942531,1724634645206,-162.0,0.00013544,2]
[335942532,1724634645215,-162.0,0.00013544,2]
[335942533,1724634645225,-162.0,0.00013544,2]
[335942534,1724634645234,-162.0,0.00013544,2]
[335942535,1724634645243,-162.0,0.00013544,2]
[335942536,1724634645252,-162.0,0.00013544,2]
[335942537,1724634645261,-162.0,0.00013544,2]
[335942538,1724634645270,-162.0,0.00013544,2]
[335942539,1724634645279,-162.0,0.00013544,2]
[335942540,1724634645291,-162.0,0.00013544,2]
[335942541,1724634645300,-162.0,0.00013544,2]
[335942542,1724634645310,-162.0,0.00013544,2]
[335942543,1724634645319,-162.0,0.00013544,2]
[335942544,1724634645328,-162.0,0.00013544,2]
[335942546,1724634645338,-162.0,0.00013544,2]
[335942548,1724634645347,-162.0,0.00013544,2]
[335942551,1724634645357,-162.0,0.00013544,2]
[335942554,1724634645366,-162.0,0.00013544,2]
[335942555,1724634645376,-162.0,0.00013544,2]
[335942556,1724634645385,-162.0,0.00013544,2]
[335942557,1724634645394,-162.0,0.00013544,2]
[335942558,1724634645404,-162.0,0.00013544,2]
[335942560,1724634645413,-162.0,0.00013544,2]
[335942562,1724634645422,-162.0,0.00013544,2]
[335942563,1724634645431,-162.0,0.00013544,2]
[335942564,1724634645440,-162.0,0.00013544,2]
[335942565,1724634645449,-162.0,0.00013544,2]
[335942566,1724634645459,-162.0,0.00013544,2]
[335942567,1724634645468,-162.0,0.00013544,2]
[335942568,1724634645478,-162.0,0.00013544,2]
[335942569,1724634645487,-162.0,0.00013544,2]
[335942570,1724634645497,-162.0,0.00013544,2]
[335942571,1724634645506,-162.0,0.00013544,2]
[335942572,1724634645515,-162.0,0.00013544,2]
[335942573,1724634645524,-162.0,0.00013544,2]
[335942574,1724634645536,-162.0,0.00013544,2]
[335942576,1724634645546,-153.0,0.00013545,2]
[335942577,1724634645556,-153.0,0.00013545,2]
[335942578,1724634645565,-153.0,0.00013545,2]
[335942579,1724634645573,-153.0,0.00013545,2]
[335942580,1724634645583,-153.0,0.00013545,2]
[335942581,1724634645592,-153.0,0.00013545,2]
[335942582,1724634645601,-153.0,0.00013545,2]
[335942583,1724634645610,-153.0,0.00013545,2]
[335942584,1724634645619,-153.0,0.00013545,2]
[335942585,1724634645628,-153.0,0.00013545,2]
[335942586,1724634645637,-153.0,0.00013545,2]
[335942587,1724634645647,-153.0,0.00013545,2]
[335942588,1724634645656,-153.0,0.00013545,2]
[335942589,1724634645665,-153.0,0.00013545,2]
[335942590,1724634645675,-153.0,0.00013545,2]
[335942591,1724634645684,-153.0,0.00013545,2]
[335942592,1724634645693,-153.0,0.00013545,2]
[335942593,1724634645703,-153.0,0.00013545,2]
[335942594,1724634645712,-153.0,0.00013545,2]
[335942595,1724634645721,-153.0,0.00013545,2]
[335942596,1724634645730,-153.0,0.00013545,2]
[335942597,1724634645739,-153.0,0.00013545,2]
[335942598,1724634645749,-153.0,0.00013545,2]
[335942599,1724634645759,-153.0,0.00013545,2]
[335942600,1724634645768,-153.0,0.00013545,2]
[335942601,1724634645777,-153.0,0.00013545,2]
[335942602,1724634645787,-153.0,0.00013545,2]
[335942603,1724634645800,-153.0,0.00013545,2]
[335942604,1724634645809,-153.0,0.00013545,2]
[335942605,1724634645820,-153.0,0.00013545,2]
[335942606,1724634645831,-153.0,0.00013545,2]
[335942607,1724634645844,-153.0,0.00013545,2]
[335942608,1724634645855,-153.0,0.00013547,2]
[335942609,1724634645865,-5775.42094809,0.00013588,2]
[335942610,1724634645875,-2000.0,0.00013588,2]
[335942611,1724634645885,-21765.23838706,0.00013596,2]
[335942612,1724634645894,-834.88,0.00013597,2]
[335942613,1724634645903,-500.0,0.00013597,2]
[335942614,1724634645913,-1432.0,0.00013597,2]
[335942615,1724634645923,-1132.24,0.00013597,2]
[335942616,1724634645931,-707.18,0.00013597,2]
[335942617,1724634645940,-1221.8,0.00013597,2]
[335942618,1724634645950,-2431.93,0.00013597,2]
[335942619,1724634645959,-6354.63,0.00013597,2]
[335942620,1724634645968,-7982.70464451,0.00013597,2]
[335942621,1724634645978,-3000.0,0.00013598,2]
[335942622,1724634645988,-301.66413705,0.00013599,2]
[335942623,1724634646004,-154.82192698,0.00013599,2]
[335942624,1724634646014,-500.0,0.00013599,2]
[335942625,1724634646023,-863.03675999,0.00013599,2]
[335942626,1724634646035,-154.74467129,0.00013599,2]
[335942627,1724634646046,-150.112233,0.000136,2]
[335942628,1724634646058,-150.112233,0.000136,2]
[335942629,1724634646067,-1132.78,0.00013602,2]
[335942630,1724634646077,-500.0,0.00013603,2]
[335942631,1724634646087,-915.01,0.00013603,2]
[335942632,1724634646097,-589.57,0.00013603,2]
[335942633,1724634646107,-768.03,0.00013603,2]
[335942634,1724634646119,-995.93,0.00013603,2]
[335942635,1724634646131,-1064.98,0.00013603,2]
[335942636,1724634646143,-1137.24,0.00013603,2]
[335942637,1724634646154,-500.0,0.00013603,2]
[335942638,1724634646164,-502.23,0.00013603,2]
[335942639,1724634646174,-500.0,0.00013603,2]
[335942640,1724634646184,-500.0,0.00013603,2]
[335942641,1724634646195,-500.0,0.00013603,2]
[335942642,1724634646207,-500.0,0.00013603,2]
[335942643,1724634646217,-1399.87,0.00013603,2]
[335942644,1724634646228,-500.0,0.00013603,2]
[335942645,1724634646238,-500.0,0.00013603,2]
[335942646,1724634646247,-588.18,0.00013603,2]
[335942647,1724634646257,-766.21,0.00013603,2]
[335942648,1724634646266,-500.0,0.00013603,2]
[335942649,1724634646275,-500.0,0.00013603,2]
[335942650,1724634646285,-500.0,0.00013603,2]
[335942651,1724634646294,-1249.14,0.00013603,2]
[335942652,1724634646304,-836.68,0.00013603,2]
[335942653,1724634646313,-500.0,0.00013603,2]
[335942654,1724634646323,-500.0,0.00013603,2]
[335942655,1724634646332,-500.0,0.00013603,2]
[335942656,1724634646341,-500.0,0.00013603,2]
[335942657,1724634646351,-598.31,0.00013603,2]
[335942658,1724634646361,-1029.66,0.00013603,2]
[335942659,1724634646371,-500.0,0.00013603,2]
[335942660,1724634646381,-682.82,0.00013603,2]
[335942661,1724634646391,-793.84,0.00013603,2]
[335942662,1724634646400,-516.67,0.00013603,2]